bitfinex/quotes_BTCUSD_20251209
["timestamp","ask_amount","ask_price","bid_price","bid_amount"]
[1765290721776,0.48395434,90239.0,90238.0,1e-08]
[1765290721956,0.59446196,90239.0,90238.0,1e-08]
[1765290722158,0.33214128,90239.0,90238.0,1e-08]
[1765290722355,0.43527066,90239.0,90238.0,1e-08]
[1765290722556,0.45729434,90239.0,90238.0,1e-08]
[1765290723475,0.36667066,90239.0,90238.0,1e-08]
[1765290723881,0.36667066,90239.0,90238.0,0.00100001]
[1765290723882,0.67136522,90239.0,90238.0,0.00100001]
[1765290724081,0.79219213,90239.0,90238.0,0.00100001]
[1765290724280,0.79319213,90239.0,90238.0,0.00100001]
[1765290724693,0.78919213,90239.0,90238.0,1e-08]
[1765290725115,0.79319213,90239.0,90238.0,0.00100001]
[1765290725322,0.79319213,90239.0,90238.0,1e-08]
[1765290725323,0.78919213,90239.0,90238.0,1e-08]
[1765290725599,0.79319213,90239.0,90238.0,0.00100001]
[1765290725895,0.67268995,90239.0,90238.0,0.00100001]
[1765290726099,0.67168995,90239.0,90238.0,0.00100001]
[1765290726701,0.67268995,90239.0,90238.0,0.00100001]
[1765290726902,0.001,90239.0,90238.0,1e-08]
[1765290727094,0.00011544,90241.0,90238.0,0.22324899]
[1765290727340,0.22563366,90239.0,90238.0,0.00261288]
[1765290727487,0.26074916,90239.0,90238.0,1e-08]
[1765290727686,0.27074372,90239.0,90238.0,1e-08]
[1765290727888,0.56544372,90239.0,90238.0,0.00100001]
[1765290728090,0.27074372,90239.0,90238.0,1e-08]
[1765290728306,0.26074916,90239.0,90238.0,1e-08]
[1765290728501,0.26174916,90239.0,90238.0,0.00100001]
[1765290728705,0.0391155,90239.0,90238.0,0.22163612]
[1765290729055,0.00011544,90241.0,90240.0,0.2216312]
[1765290729169,0.00011544,90241.0,90240.0,0.22324407]
[1765290730205,0.00011544,90241.0,90240.0,0.30776252]
[1765290730386,0.00011544,90241.0,90240.0,0.57646706]
[1765290730593,0.00111544,90241.0,90240.0,0.59946252]
[1765290730991,0.00011544,90241.0,90240.0,0.59846252]
[1765290731453,0.00111544,90241.0,90240.0,0.66309752]
[1765290731747,0.00011544,90241.0,90240.0,0.65809752]
[1765290731951,0.00211544,90241.0,90240.0,0.60646252]
[1765290732152,0.00211544,90241.0,90240.0,0.29676706]
[1765290732325,0.00211544,90241.0,90240.0,0.31440706]
[1765290732495,0.00211544,90241.0,90240.0,0.24888407]
[1765290732897,0.00211544,90241.0,90240.0,0.33840252]
[1765290733130,0.00011544,90241.0,90240.0,0.33040252]
[1765290733333,0.00011544,90241.0,90240.0,0.32540252]
[1765290733512,0.00111544,90241.0,90240.0,0.00961287]
[1765290733715,0.00111544,90241.0,90240.0,0.01361287]
[1765290733914,0.08225395,90241.0,90240.0,0.02164]
[1765290734154,0.00111544,90241.0,90240.0,0.02964]
[1765290734515,0.00011544,90241.0,90240.0,0.02164]
[1765290734714,0.00411544,90241.0,90240.0,0.02264]
[1765290734999,0.00411544,90241.0,90240.0,0.001]
[1765290735187,0.2216312,90240.0,90238.0,1e-08]
[1765290735387,1.06670545,90239.0,90238.0,1e-08]
[1765290735566,0.84820645,90239.0,90238.0,1e-08]
[1765290736106,0.25485175,90241.0,90238.0,1e-08]
[1765290736107,0.00011544,90241.0,90238.0,0.23271727]
[1765290736286,0.00111544,90241.0,90239.0,0.2216332]
[1765290736490,0.00111544,90241.0,90239.0,0.22324607]
[1765290736642,0.00011544,90241.0,90239.0,0.00161287]
[1765290736841,0.22574418,90241.0,90240.0,0.01864]
[1765290737063,0.02202368,90239.0,90238.0,1e-08]
[1765290737268,0.22163366,90239.0,90238.0,1e-08]
[1765290738520,0.00011544,90241.0,90238.0,0.01269468]
[1765290738756,0.00011544,90241.0,90239.0,0.22163256]
[1765290739023,0.00011544,90241.0,90239.0,0.22324543]
[1765290739376,0.24502601,90241.0,90239.0,0.01925287]
[1765290739580,0.24502601,90241.0,90238.0,1e-08]
[1765290739581,0.22163366,90239.0,90238.0,1e-08]
[1765290739780,0.22163366,90239.0,90238.0,0.00100001]
[1765290739988,1.77070434,90239.0,90238.0,0.00100001]
[1765290740184,1.77170434,90239.0,90238.0,0.00200001]
[1765290740486,1.46293196,90239.0,90238.0,0.00200001]
[1765290740654,1.47225597,90239.0,90238.0,0.00100001]
[1765290741065,1.47225597,90239.0,90238.0,1e-08]
[1765290741329,1.46193196,90239.0,90238.0,1e-08]
[1765290741539,1.47225519,90239.0,90238.0,1e-08]
[1765290742190,1.47525519,90239.0,90238.0,0.00100001]
[1765290742393,1.47625519,90239.0,90238.0,0.00100001]
[1765290742609,1.50002792,90239.0,90238.0,0.00100001]
[1765290742820,1.49902792,90239.0,90238.0,0.00100001]
[1765290743031,1.50102792,90239.0,90238.0,0.00100001]
[1765290743266,1.50102792,90239.0,90238.0,1e-08]
[1765290743484,1.49802792,90239.0,90238.0,1e-08]
[1765290743669,1.50402792,90239.0,90238.0,0.00100001]
[1765290743890,1.49802792,90239.0,90238.0,1e-08]
[1765290746852,1.52164528,90239.0,90238.0,0.00100001]
[1765290747883,1.49789519,90239.0,90238.0,0.00100001]
[1765290748288,1.49589519,90239.0,90238.0,0.00100001]
[1765290748480,1.49589519,90239.0,90238.0,1e-08]
[1765290748481,1.55841818,90239.0,90238.0,1e-08]
[1765290748683,1.56141818,90239.0,90238.0,1e-08]
[1765290749172,1.55841818,90239.0,90238.0,1e-08]
[1765290749378,1.55841818,90239.0,90222.0,0.2182475]
[1765290749379,2.59691963,90223.0,90222.0,0.2182475]
[1765290749577,2.62488286,90223.0,90222.0,0.18544399]
[1765290750037,2.60724286,90223.0,90222.0,0.18544399]
[1765290750244,2.62488286,90223.0,90222.0,0.18544399]
[1765290750556,2.54471987,90223.0,90222.0,0.18544399]
[1765290750781,2.68086749,90223.0,90222.0,0.18644399]
[1765290750940,2.68086749,90223.0,90222.0,0.18544399]
[1765290750941,2.67286749,90223.0,90222.0,0.18544399]
[1765290751155,0.97343287,90223.0,90222.0,0.18544399]
[1765290751327,0.34689319,90223.0,90222.0,0.18544399]
[1765290751529,0.35259364,90223.0,90222.0,0.18544399]
[1765290751754,0.64329364,90223.0,90222.0,0.18544399]
[1765290752332,0.65558901,90223.0,90222.0,0.18544399]
[1765290752533,0.75580126,90223.0,90222.0,0.18544399]
[1765290752738,0.65858941,90223.0,90222.0,0.18544399]
[1765290753146,0.65558941,90223.0,90222.0,0.18544399]
[1765290753347,0.65958941,90223.0,90222.0,0.18544399]
[1765290753750,0.7181124,90223.0,90222.0,0.18544399]
[1765290753950,0.65858941,90223.0,90222.0,0.18544399]
[1765290754151,0.78673703,90223.0,90222.0,0.18544399]
[1765290754366,0.78373703,90223.0,90222.0,0.18544399]
[1765290754610,0.78873703,90223.0,90222.0,0.18544399]
[1765290754828,0.84926002,90223.0,90222.0,0.18544399]
[1765290755004,0.85126002,90223.0,90222.0,0.18574266]
[1765290755432,0.84926002,90223.0,90222.0,0.18574266]
[1765290755894,0.85226002,90223.0,90222.0,0.18574266]
[1765290756312,0.84926002,90223.0,90222.0,0.18574266]
[1765290756633,0.76409703,90223.0,90222.0,0.18574266]
[1765290756842,0.78673703,90223.0,90222.0,0.18574266]
[1765290757090,0.76909703,90223.0,90222.0,0.18574266]
[1765290757248,0.35259364,90223.0,90222.0,0.18574266]
[1765290757612,0.62926996,90223.0,90222.0,0.18574266]
[1765290757826,0.63426452,90223.0,90222.0,0.18574266]
[1765290758034,0.40959156,90223.0,90222.0,0.18574266]
[1765290758195,0.5,90230.0,90222.0,0.18574266]
[1765290758196,0.334833,90227.0,90222.0,0.18574266]
[1765290758396,0.001,90223.0,90222.0,0.18544399]
[1765290758655,0.122236,90223.0,90222.0,0.40711941]
[1765290758811,0.46410896,90223.0,90222.0,0.18544399]
[1765290759014,0.121236,90223.0,90222.0,0.18544399]
[1765290759239,0.44071763,90223.0,90222.0,0.18544399]
[1765290759454,0.44471763,90223.0,90222.0,0.18544399]
[1765290759628,0.01880867,90223.0,90222.0,0.18544399]
[1765290759833,0.47021763,90223.0,90222.0,0.18544399]
[1765290760027,0.47221763,90223.0,90222.0,0.18544399]
[1765290760700,0.25054467,90223.0,90222.0,0.18544399]
[1765290760875,0.02080867,90223.0,90222.0,0.18544399]
[1765290761084,0.26221267,90223.0,90222.0,0.18544399]
[1765290761295,0.48388563,90223.0,90222.0,0.18544399]
[1765290761496,0.79660931,90223.0,90222.0,0.18544399]
[1765290761789,0.80690383,90223.0,90222.0,0.18544399]
[1765290762508,0.82454383,90223.0,90222.0,0.18544399]
[1765290763661,0.82454383,90223.0,90217.0,4.004e-05]
[1765290763662,0.01108401,90220.0,90217.0,4.004e-05]
[1765290763985,2.5849028,90218.0,90217.0,4.004e-05]
[1765290764164,2.59519732,90218.0,90217.0,4.004e-05]
[1765290764360,2.59519732,90218.0,90217.0,0.00048807]
[1765290765922,2.59519732,90218.0,90089.0,0.05557339]
[1765290765923,2.58494458,90201.0,90165.0,0.01764]
[1765290766120,2.6128791,90201.0,90170.0,0.01109016]
[1765290766321,2.6128791,90201.0,90165.0,0.02873077]
[1765290766322,2.6128791,90201.0,90166.0,0.01109065]
[1765290766681,2.6128791,90201.0,90168.0,0.0111804]
[1765290767023,2.6128791,90201.0,90171.0,0.01109004]
[1765290767286,2.6168791,90201.0,90200.0,0.00328492]
[1765290767508,2.6128791,90201.0,90200.0,0.00328492]
[1765290767717,2.6168791,90201.0,90200.0,0.00328492]
[1765290767935,2.63468777,90201.0,90200.0,0.00328492]
[1765290768142,2.57216478,90201.0,90200.0,0.00328492]
[1765290768355,2.63468777,90201.0,90200.0,1e-08]
[1765290768886,2.63668777,90201.0,90200.0,1e-08]
[1765290769206,2.63468777,90201.0,90200.0,1e-08]
[1765290769407,2.63468777,90201.0,90169.0,4.004e-05]
[1765290769408,2.23179782,90170.0,90169.0,4.004e-05]
[1765290769575,2.0153625,90170.0,90169.0,0.00015584]
[1765290769778,2.3060625,90170.0,90169.0,0.00015584]
[1765290770188,1.1301265,90170.0,90169.0,0.00015584]
[1765290771030,1.1311265,90170.0,90169.0,0.00015584]
[1765290771229,0.94738994,90170.0,90169.0,0.00015584]
[1765290771430,0.87850578,90170.0,90169.0,0.00115584]
[1765290771652,0.91816946,90170.0,90169.0,0.00115584]
[1765290772186,0.90052946,90170.0,90169.0,0.00015584]
[1765290772733,0.90652946,90170.0,90169.0,0.00015584]
[1765290773030,0.90052946,90170.0,90169.0,0.00015584]
[1765290773228,1.01103708,90170.0,90169.0,0.00015584]
[1765290773452,0.94059308,90170.0,90169.0,0.00015584]
[1765290773654,0.44207952,90170.0,90169.0,0.00015584]
[1765290773850,0.44207952,90170.0,90169.0,0.00176871]
[1765290773851,0.431785,90170.0,90169.0,0.00176871]
[1765290774317,0.430785,90170.0,90169.0,0.00176871]
[1765290774513,0.431785,90170.0,90169.0,0.00015584]
[1765290774718,0.46409347,90170.0,90169.0,0.00015584]
[1765290774951,0.57460091,90170.0,90169.0,0.00015584]
[1765290775158,0.57360091,90170.0,90169.0,0.00015584]
[1765290775375,0.56860091,90170.0,90169.0,0.00015584]
[1765290775581,0.56860091,90170.0,90169.0,0.00215584]
[1765290775818,0.57360091,90170.0,90169.0,0.00215584]
[1765290776025,0.56860091,90170.0,90169.0,0.00215584]
[1765290776396,0.57160091,90170.0,90169.0,0.00215584]
[1765290776597,0.56860091,90170.0,90169.0,0.00215584]
[1765290776798,0.56860091,90170.0,90169.0,0.00359041]
[1765290776997,0.57160091,90170.0,90169.0,0.00159041]
[1765290777214,0.56860091,90170.0,90169.0,0.00159041]
[1765290777392,0.6311239,90170.0,90169.0,0.00159041]
[1765290778179,0.6311239,90170.0,90168.0,9e-05]
[1765290778180,2.59705239,90169.0,90168.0,9e-05]
[1765290778382,2.67633654,90169.0,90168.0,9e-05]
[1765290779900,2.68333654,90169.0,90168.0,9e-05]
[1765290780419,2.53459583,90142.0,90129.0,0.00077913]
[1765290780625,2.54488044,90142.0,90129.0,0.00077913]
[1765290780824,2.56267267,90142.0,90129.0,0.00077913]
[1765290781004,2.544864,90142.0,90130.0,0.23299452]
[1765290781351,0.01026817,90142.0,90141.0,0.00917865]
[1765290781509,0.01109336,90144.0,90141.0,0.02027238]
[1765290781706,0.01026473,90159.0,90141.0,0.02027238]
[1765290781707,0.01109139,90160.0,90157.0,0.01109176]
[1765290781904,0.01109127,90161.0,90158.0,0.01109163]
[1765290781905,0.01026556,90161.0,90158.0,0.01109163]
[1765290782121,0.01026556,90161.0,90158.0,0.00161287]
[1765290782122,0.22182915,90160.0,90158.0,0.00161287]
[1765290782330,0.01026556,90164.0,90158.0,0.00161287]
[1765290782331,0.370828,90159.0,90158.0,0.00161287]
[1765290782583,0.08008982,90169.0,90160.0,0.01109139]
[1765290782584,0.159201,90163.0,90160.0,0.01109139]
[1765290782771,0.06899954,90169.0,90167.0,0.22180963]
[1765290782772,0.00011538,90169.0,90167.0,0.22180963]
[1765290782975,0.00011538,90169.0,90166.0,0.23290273]
[1765290783177,0.00011538,90169.0,90167.0,0.22342228]
[1765290783380,0.00011538,90169.0,90167.0,0.00161287]
[1765290783695,0.00011538,90169.0,90140.0,0.44395139]
[1765290783696,0.00011538,90169.0,90166.0,0.23290182]
[1765290783845,0.00111538,90169.0,90166.0,0.01109065]
[1765290784054,0.05,90168.0,90166.0,0.23290287]
[1765290784440,0.05,90168.0,90167.0,0.004]
[1765290784865,0.05,90168.0,90167.0,0.00161287]
[1765290785438,0.00111538,90169.0,90168.0,0.22180818]
[1765290785653,0.00111538,90169.0,90168.0,0.22342105]
[1765290786026,0.00011538,90169.0,90168.0,0.22342105]
[1765290786465,0.00111538,90169.0,90168.0,0.22342105]
[1765290786676,0.00011538,90169.0,90168.0,0.24110105]
[1765290787040,0.00111538,90169.0,90168.0,0.24410105]
[1765290787239,0.00011538,90169.0,90168.0,0.24110105]
[1765290787827,0.00111538,90169.0,90168.0,0.24410105]
[1765290788446,0.00111538,90169.0,90168.0,0.24810105]
[1765290788654,0.00111538,90169.0,90168.0,0.31062404]
[1765290788857,0.00111538,90169.0,90168.0,0.32062222]
[1765290789186,0.00011538,90169.0,90168.0,0.22742105]
[1765290789392,0.00111538,90169.0,90168.0,0.24910105]
[1765290789538,0.00111538,90169.0,90168.0,0.24510105]
[1765290789743,0.00011538,90169.0,90168.0,0.24110105]
[1765290790112,0.00111538,90169.0,90168.0,0.24610105]
[1765290790251,0.00011538,90169.0,90168.0,0.24110105]
[1765290790451,0.00011538,90169.0,90168.0,0.24610105]
[1765290790690,0.00111538,90169.0,90168.0,0.24910105]
[1765290790992,0.00011538,90169.0,90168.0,0.24610105]
[1765290791245,0.00011538,90169.0,90168.0,0.00661287]
[1765290791493,0.00011538,90169.0,90168.0,0.00161287]
[1765290791684,0.22182048,90163.0,90161.0,0.00023918]
[1765290792132,0.22182115,90163.0,90161.0,0.00023918]
[1765290792340,0.221821,90163.0,90161.0,0.00023918]
[1765290792745,0.31791383,90163.0,90161.0,0.00023918]
[1765290792943,0.01109077,90165.0,90162.0,0.01109114]
[1765290793158,0.01109077,90165.0,90161.0,0.23315477]
[1765290793357,0.00011538,90169.0,90161.0,0.23315477]
[1765290793358,0.001,90163.0,90162.0,0.01270401]
[1765290793535,0.23301316,90169.0,90166.0,0.01109065]
[1765290793733,0.00011538,90169.0,90167.0,0.22181024]
[1765290793932,0.00011538,90169.0,90166.0,0.01109065]
[1765290794145,0.00011538,90169.0,90167.0,0.22181015]
[1765290794339,0.00011538,90169.0,90167.0,0.22342182]
[1765290794550,0.00011538,90169.0,90168.0,0.00161287]
[1765290795646,0.00011538,90169.0,90168.0,0.09801808]
[1765290795854,0.00011538,90169.0,90168.0,0.19852409]
[1765290796061,0.00011538,90169.0,90168.0,0.48922409]
[1765290796236,0.01031873,90209.0,90168.0,0.48922409]
[1765290796237,0.02967528,90228.0,90168.0,0.48922409]
[1765290796238,0.219424,90212.0,90210.0,0.01108524]
[1765290796442,0.219424,90212.0,90211.0,0.22170245]
[1765290796443,0.00038712,90212.0,90211.0,0.22170245]
[1765290796638,0.00038712,90212.0,90211.0,0.22331532]
[1765290797325,0.00038712,90212.0,90211.0,0.00161287]
[1765290797503,0.00338712,90212.0,90211.0,0.00161287]
[1765290797850,0.00338712,90212.0,90211.0,0.02195453]
[1765290797851,0.00038712,90212.0,90211.0,0.02195453]
[1765290798207,0.00038712,90212.0,90211.0,0.01929287]
[1765290798559,0.00038712,90212.0,90211.0,0.04128833]
[1765290798912,0.00038712,90212.0,90211.0,0.01929287]
[1765290799117,0.00038712,90212.0,90211.0,0.04128833]
[1765290799493,0.00038712,90212.0,90211.0,0.04328833]
[1765290799494,0.00338712,90212.0,90211.0,0.04328833]
[1765290799665,0.00038712,90212.0,90211.0,0.04228833]
[1765290799866,0.00038712,90212.0,90211.0,0.04128833]
[1765290800223,0.00138712,90212.0,90211.0,0.02329287]
[1765290800427,0.00038712,90212.0,90211.0,0.00661287]
[1765290800623,0.00038712,90212.0,90211.0,0.02429287]
[1765290800864,0.00138712,90212.0,90211.0,0.02329287]
[1765290801051,0.00038712,90212.0,90211.0,0.01929287]
[1765290801269,0.00038712,90212.0,90211.0,0.02329287]
[1765290801467,0.00138712,90212.0,90211.0,0.02629287]
[1765290801611,0.00138712,90212.0,90211.0,0.00861287]
[1765290801812,0.00138712,90212.0,90211.0,0.02629287]
[1765290802310,0.00138712,90212.0,90211.0,0.11081132]
[1765290802511,0.00138712,90212.0,90211.0,0.10681132]
[1765290802709,0.00038712,90212.0,90211.0,0.10881132]
[1765290803335,0.00138712,90212.0,90211.0,0.10781132]
[1765290803527,0.00138712,90212.0,90211.0,0.11281132]
[1765290803756,0.00138712,90212.0,90211.0,0.50680223]
[1765290803959,0.00138712,90212.0,90211.0,0.50280223]
[1765290803960,0.00038712,90212.0,90211.0,0.50280223]
[1765290804173,0.00038712,90212.0,90211.0,0.49780223]
[1765290804328,0.00138712,90212.0,90211.0,0.50780223]
[1765290804516,0.00038712,90212.0,90211.0,0.50380223]
[1765290804913,0.00038712,90212.0,90211.0,0.40051132]
[1765290805273,0.00038712,90212.0,90211.0,0.40001132]
[1765290805819,0.00038712,90212.0,90211.0,0.40101132]
[1765290805820,0.00138712,90212.0,90211.0,0.40101132]
[1765290806073,0.00238712,90212.0,90211.0,0.40801132]
[1765290806239,0.22157305,90264.0,90260.0,0.0110791]
[1765290806417,0.00011612,90264.0,90263.0,0.01107873]
[1765290806619,0.00011612,90264.0,90263.0,0.0121916]
[1765290807076,0.00011612,90264.0,90263.0,0.03418706]
[1765290807650,0.00011612,90264.0,90263.0,0.19097699]
[1765290807983,0.00011612,90264.0,90263.0,0.19197699]
[1765290807984,0.00711612,90264.0,90263.0,0.19197699]
[1765290808767,0.00711612,90264.0,90263.0,0.48267699]
[1765290809107,0.00011612,90264.0,90263.0,0.48367699]
[1765290809263,0.00011612,90264.0,90263.0,0.48567699]
[1765290809444,0.00111612,90264.0,90263.0,0.48567699]
[1765290809634,0.00011612,90264.0,90263.0,0.48167699]
[1765290809826,0.00011612,90264.0,90263.0,0.48667699]
[1765290810031,0.00011612,90264.0,90263.0,0.49067699]
[1765290810032,0.00111612,90264.0,90263.0,0.49067699]
[1765290810673,0.00342221,90268.0,90263.0,0.49067699]
[1765290810674,0.00342221,90268.0,90267.0,0.59678336]
[1765290810872,0.00342221,90268.0,90267.0,0.66973409]
[1765290811077,0.00192469,90268.0,90267.0,0.66973409]
[1765290811277,1e-08,90268.0,90267.0,0.66973409]
[1765290812482,1e-08,90268.0,90267.0,0.68273409]
[1765290812713,0.0004,90300.0,90299.0,0.22148639]
[1765290813024,0.000516,90300.0,90299.0,0.3934201]
[1765290813161,0.000516,90300.0,90299.0,0.6841201]
[1765290813969,0.000516,90300.0,90299.0,0.6871201]
[1765290814589,1e-08,90300.0,90299.0,0.6871201]
[1765290815356,1e-08,90300.0,90299.0,0.6881201]
[1765290815558,1e-08,90300.0,90299.0,0.6871201]
[1765290815766,1e-08,90300.0,90299.0,0.6841201]
[1765290816009,0.00100001,90300.0,90299.0,0.6881201]
[1765290816210,1e-08,90300.0,90299.0,0.6841201]
[1765290816418,1e-08,90300.0,90299.0,0.6871201]
[1765290816617,0.00100001,90300.0,90299.0,0.6901201]
[1765290816817,0.00100001,90300.0,90299.0,0.6871201]
[1765290817001,1e-08,90300.0,90299.0,0.6841201]
[1765290817206,1e-08,90300.0,90299.0,0.6881201]
[1765290817406,1e-08,90300.0,90299.0,0.6704801]
[1765290817608,1e-08,90300.0,90299.0,0.53529472]
[1765290817863,1e-08,90300.0,90299.0,0.24023926]
[1765290818043,1e-08,90300.0,90299.0,0.30276225]
[1765290818402,0.00095464,90300.0,90299.0,0.30476225]
[1765290818603,0.00095464,90300.0,90299.0,0.30276225]
[1765290818807,0.00095464,90300.0,90299.0,0.24023926]
[1765290819006,0.00195464,90300.0,90299.0,0.30276225]
[1765290819307,0.00095464,90300.0,90299.0,0.00411287]
[1765290819504,0.00395464,90300.0,90299.0,0.01764]
[1765290819750,0.00095464,90300.0,90299.0,0.01764]
[1765290819953,0.00095464,90300.0,90299.0,0.002]
[1765290820158,0.00395464,90300.0,90299.0,0.01964]
[1765290820656,0.00395464,90300.0,90299.0,0.01875287]
[1765290820808,0.00395464,90300.0,90299.0,0.03795109]
[1765290821030,0.00395464,90300.0,90299.0,0.00311287]
[1765290821239,0.00095464,90300.0,90299.0,0.02075287]
[1765290821555,0.00095464,90300.0,90299.0,0.05994585]
[1765290821897,0.00095464,90300.0,90299.0,0.04274833]
[1765290821898,0.00395464,90300.0,90299.0,0.04274833]
[1765290822211,0.00395464,90300.0,90299.0,0.04032697]
[1765290822413,0.00395464,90300.0,90299.0,0.00111287]
[1765290822621,0.00395464,90300.0,90299.0,0.02075287]
[1765290822894,0.00395464,90300.0,90299.0,0.01875287]
[1765290823199,0.00395464,90300.0,90299.0,0.12049047]
[1765290823410,0.00395464,90300.0,90299.0,0.12249047]
[1765290823760,0.00395464,90300.0,90299.0,0.12049047]
[1765290823966,0.00395464,90300.0,90299.0,0.09849501]
[1765290824373,0.00095464,90300.0,90299.0,0.09849501]
[1765290824554,0.00095464,90300.0,90299.0,0.03597202]
[1765290824555,0.00395464,90300.0,90299.0,0.03597202]
[1765290824956,0.00095464,90300.0,90299.0,0.03597202]
[1765290825168,0.00395464,90300.0,90299.0,0.12249047]
[1765290825608,0.00095464,90300.0,90299.0,0.12049047]
[1765290825804,0.00095464,90300.0,90299.0,0.09849501]
[1765290826008,0.00495464,90300.0,90299.0,0.00311287]
[1765290826213,0.00095464,90300.0,90299.0,0.00311287]
[1765290826386,0.00095464,90300.0,90299.0,0.01875287]
[1765290826928,0.00095464,90300.0,90299.0,0.24323926]
[1765290827104,0.00095464,90300.0,90299.0,0.399856]
[1765290827509,0.00395464,90300.0,90299.0,0.399856]
[1765290827915,0.00395464,90300.0,90299.0,0.42185146]
[1765290827916,0.00095464,90300.0,90299.0,0.42185146]
[1765290828122,0.00595464,90300.0,90299.0,0.41885146]
[1765290828522,0.00095464,90300.0,90299.0,0.71155146]
[1765290828952,0.00395464,90300.0,90299.0,0.71155146]
[1765290829113,0.00095464,90300.0,90299.0,0.70955146]
[1765290829614,0.00395464,90300.0,90299.0,0.71255146]
[1765290830115,0.00395464,90300.0,90299.0,0.70955146]
[1765290830754,0.00095464,90300.0,90299.0,0.70955146]
[1765290830903,0.00195464,90300.0,90299.0,0.70955146]
[1765290831343,0.00195464,90300.0,90299.0,0.71355146]
[1765290832943,0.00195464,90300.0,90299.0,0.72553682]
[1765290833149,1e-08,90300.0,90299.0,0.71355146]
[1765290833349,1e-08,90300.0,90299.0,0.7532991]
[1765290833545,1e-08,90300.0,90299.0,0.71355146]
[1765290833811,1e-08,90300.0,90299.0,0.77317292]
[1765290834019,1e-08,90300.0,90299.0,0.71355146]
[1765290834241,0.0004,90320.0,90299.0,0.71355146]
[1765290834242,1e-08,90320.0,90319.0,0.59665579]
[1765290834388,0.00038651,90320.0,90319.0,0.71198706]
[1765290834559,1e-08,90320.0,90319.0,0.71198706]
[1765290834974,1e-08,90340.0,90339.0,0.59660677]
[1765290835166,0.00011591,90340.0,90339.0,0.6695175]
[1765290835370,0.00011591,90340.0,90339.0,0.84720906]
[1765290835371,1e-08,90340.0,90339.0,0.84720906]
[1765290835814,1e-08,90340.0,90339.0,0.92628812]
[1765290836287,0.0004,90390.0,90369.0,0.59653328]
[1765290836507,0.00051586,90370.0,90369.0,0.7093799]
[1765290837959,1e-08,90370.0,90369.0,0.7093799]
[1765290838180,1e-08,90370.0,90369.0,0.6917399]
[1765290838379,1e-08,90370.0,90369.0,0.7093799]
[1765290838624,1e-08,90370.0,90369.0,0.7133799]
[1765290838801,1e-08,90370.0,90369.0,0.6957399]
[1765290839003,1e-08,90370.0,90369.0,0.7133799]
[1765290839417,1e-08,90370.0,90369.0,0.7093799]
[1765290840075,1e-08,90370.0,90369.0,0.7389999]
[1765290840270,1e-08,90370.0,90369.0,0.7093799]
[1765290840524,1e-08,90370.0,90369.0,0.74890435]
[1765290840765,1e-08,90370.0,90369.0,0.77271271]
[1765290840987,0.0004,90390.0,90389.0,0.59648431]
[1765290841216,0.0004,90390.0,90389.0,0.69417558]
[1765290841427,0.0004,90400.0,90399.0,0.59645983]
[1765290841633,0.00051584,90400.0,90399.0,0.5975727]
[1765290841840,0.00051584,90400.0,90399.0,0.6152127]
[1765290842051,0.00051584,90400.0,90399.0,0.5975727]
[1765290842256,0.00051584,90400.0,90399.0,0.66937056]
[1765290842492,1e-08,90400.0,90399.0,0.66937056]
[1765290843232,1e-08,90400.0,90399.0,0.70872277]
[1765290843442,1e-08,90400.0,90399.0,0.66937056]
[1765290843643,0.0004,90430.0,90412.0,0.59642802]
[1765290843890,0.0004,90430.0,90429.0,0.59638643]
[1765290844095,0.0004,90430.0,90429.0,0.59314384]
[1765290844096,0.00051574,90430.0,90429.0,0.59314384]
[1765290844303,0.00051574,90430.0,90429.0,0.6151393]
[1765290845580,1e-08,90430.0,90429.0,0.6151393]
[1765290845803,1e-08,90430.0,90429.0,0.7117177]
[1765290846017,4.004e-05,90449.0,90429.0,0.7117177]
[1765290846018,4.004e-05,90449.0,90448.0,0.59633997]
[1765290846258,1e-08,90450.0,90449.0,0.37521845]
[1765290846468,4.004e-05,90497.0,90479.0,0.57426875]
[1765290846672,0.00051577,90480.0,90479.0,0.66917494]
[1765290846906,0.00587399,90480.0,90479.0,0.66917494]
[1765290847103,4.004e-05,90497.0,90479.0,0.66917494]
[1765290847104,4.004e-05,90497.0,90496.0,0.59622269]
[1765290847312,4.004e-05,90497.0,90496.0,0.68306026]
[1765290848380,0.0004,90510.0,90496.0,1.06849726]
[1765290848574,0.01104276,90557.0,90519.0,0.51164808]
[1765290848792,0.00051565,90520.0,90519.0,0.6149194]
[1765290849208,0.00051565,90520.0,90519.0,0.5972794]
[1765290849358,0.00051565,90520.0,90519.0,0.61741446]
[1765290849563,0.00051565,90520.0,90519.0,0.63505446]
[1765290849967,0.00051565,90520.0,90519.0,0.62305718]
[1765290850188,0.00051565,90520.0,90519.0,0.60541718]
[1765290850418,0.00051565,90520.0,90519.0,0.62305718]
[1765290850622,0.00451565,90520.0,90519.0,0.62305718]
[1765290850831,0.00451565,90520.0,90519.0,0.02124793]
[1765290850978,0.00451565,90520.0,90490.0,0.00099999]
[1765290850979,0.0110474,90519.0,90513.0,0.01104813]
[1765290851178,0.23200268,90517.0,90514.0,0.01764]
[1765290851446,0.23200268,90517.0,90515.0,0.01764]
[1765290851447,0.01104777,90516.0,90515.0,0.01764]
[1765290851640,0.00049999,90517.0,90515.0,0.01764]
[1765290852451,0.22145426,90517.0,90515.0,0.01764]
[1765290852652,0.22145426,90517.0,90460.0,0.00099999]
[1765290852653,0.00050546,90497.0,90496.0,0.03304567]
[1765290852871,0.00050546,90497.0,90496.0,0.05179854]
[1765290853074,0.00050546,90497.0,90496.0,0.03980126]
[1765290853252,0.00050546,90497.0,90496.0,0.17481786]
[1765290853469,0.00050546,90497.0,90496.0,0.16481968]
[1765290853633,0.00050546,90497.0,90496.0,0.10118382]
[1765290853833,0.00050546,90497.0,90496.0,0.10229669]
[1765290854193,0.00050546,90497.0,90496.0,0.39299669]
[1765290854367,0.00050546,90497.0,90496.0,0.47751514]
[1765290854571,0.00350546,90497.0,90496.0,0.47751514]
[1765290854869,0.0004,90540.0,90519.0,0.59616653]
[1765290855191,0.0004,90540.0,90519.0,0.705093]
[1765290855539,0.01144484,90540.0,90519.0,0.705093]
[1765290855776,0.0004,90540.0,90519.0,0.705093]
[1765290857282,0.0004,90540.0,90519.0,0.706093]
[1765290857677,0.0004,90540.0,90519.0,0.705093]
[1765290857888,0.00251565,90520.0,90519.0,0.705093]
[1765290858286,0.00051565,90520.0,90519.0,0.68309754]
[1765290858490,0.00101564,90520.0,90519.0,0.01764]
[1765290858712,0.00051565,90520.0,90519.0,0.23970095]
[1765290858945,0.00051565,90520.0,90519.0,0.24969913]
[1765290859150,0.00101564,90520.0,90515.0,0.01104789]
[1765290859323,0.00101564,90520.0,90519.0,0.01764]
[1765290860132,0.00201564,90520.0,90519.0,0.01764]
[1765290860336,0.00201564,90520.0,90443.0,0.02940123]
[1765290860337,0.01104862,90509.0,90505.0,0.01104911]
[1765290860549,0.00169925,90520.0,90519.0,0.22094808]
[1765290860550,0.00101564,90520.0,90519.0,0.22094808]
[1765290860886,0.00101564,90520.0,90519.0,0.29166054]
[1765290860887,0.00051565,90520.0,90519.0,0.29166054]